{"text_format":"1","workbook":"xlsx","n_sheets":1,"sheets":["ورقة1"],"not_rendered":{"charts":0,"images":0,"macros":0,"external_links":2,"defined_names":1,"comments":0,"pivot_tables":0},"unopened":[],"bounds":{"document_bytes":16777216,"sheet_cells":100000,"rows_first":2000,"rows_last":500,"rows_between":2000,"halvings":0,"cell_chars":16384,"cell_head_chars":4096},"cells_cut":0,"cells_raw":0,"read":"whole","date_system":"1900"}

{"sheet":"ورقة1","index":0,"n_rows":28,"n_cols":13,"rows_kept":28,"cut":false,"hidden":false,"merged":[[17,1,17,2],[17,3,17,4],[1,8,1,12],[0,8,0,12]]}
["فا"]
[null,"الاسم","إبراهيم الصيد العموري","سنة",2019,null,null,null,"ابراهيم الصيد العموري"]
[null,null,null,null,null,null,null,null,"الأحد","الإثنين","الثلاثاء","الأربعاء","الخميس"]
[null,"شهر الغياب","أيام الغياب","أيام الغياب بالحروف","عدد أيام الغياب","عمود1","اسم أيام الغياب","عدد الحصص في الأسبوع",2,3,1,3,3]
[1,"يناير","22 -20 -16 -13 -10 -3 ","ستة أيام",6,2018,"الخميس - الخميس - الأحد - الأربعاء - الأحد - الثلاثاء -.","عدد أيام الغياب",2,0,1,1,2]
[2,"فبراير","27 -26 ","يومـــان",2,2019,"الثلاثاء - الأربعاء -.","مجموع حصص الغياب",{"$f":"I4*I5","v":4},{"$f":"J4*J5","v":0},1,3,6]
[3,"مارس","28 -26 -4 -3 ","أربعة أيام",4,2020,"الأحد - الإثنين - الثلاثاء - الخميس -."]
[4,"ابريل","","","",2021]
[5,"مايو","","",""]
[6,"يونيو","","",""]
[7,"يوليو","","",""]
[8,"أغسطس","","",""]
[9,"سبتمبر","","",""]
[10,"أكتوبر","","",""]
[11,"نوفمبر","","",""]
[12,"ديسمبر","","",""]
[]
[null,"عـــــدد أيــــــــام الغيـــــــــــــاب خـــــــــــــلال السنــــــــــة ",null,12]
[]
[]
[null,null,{"$f":"IFERROR(INDEX('[2]أرشيف الغياب'!#REF!,MATCH(#REF!,'[2]أرشيف الغياب'!#REF!,0)),\"\")","v":""},{"$f":"IFERROR(INDEX('[2]أرشيف الغياب'!#REF!,MATCH(#REF!,'[2]أرشيف الغياب'!#REF!,0)),\"\")","v":""},{"$f":"IFERROR(INDEX('[2]أرشيف الغياب'!#REF!,MATCH(#REF!,'[2]أرشيف الغياب'!#REF!,0)),\"\")","v":""}]
[null,null,{"$f":"IFERROR(INDEX('[2]أرشيف الغياب'!#REF!,MATCH(D19,'[2]أرشيف الغياب'!#REF!,0)),\"\")","v":""},{"$f":"IFERROR(INDEX('[2]أرشيف الغياب'!#REF!,MATCH(D19,'[2]أرشيف الغياب'!#REF!,0)),\"\")","v":""},{"$f":"IFERROR(INDEX('[2]أرشيف الغياب'!#REF!,MATCH(D19,'[2]أرشيف الغياب'!#REF!,0)),\"\")","v":""}]
[null,null,{"$f":"IFERROR(INDEX('[2]أرشيف الغياب'!#REF!,MATCH(D20,'[2]أرشيف الغياب'!#REF!,0)),\"\")","v":""},{"$f":"IFERROR(INDEX('[2]أرشيف الغياب'!#REF!,MATCH(D20,'[2]أرشيف الغياب'!#REF!,0)),\"\")","v":""},{"$f":"IFERROR(INDEX('[2]أرشيف الغياب'!#REF!,MATCH(D20,'[2]أرشيف الغياب'!#REF!,0)),\"\")","v":""}]
[null,null,{"$f":"IFERROR(INDEX('[2]أرشيف الغياب'!#REF!,MATCH(D21,'[2]أرشيف الغياب'!#REF!,0)),\"\")","v":""},{"$f":"IFERROR(INDEX('[2]أرشيف الغياب'!#REF!,MATCH(D21,'[2]أرشيف الغياب'!#REF!,0)),\"\")","v":""},{"$f":"IFERROR(INDEX('[2]أرشيف الغياب'!#REF!,MATCH(D21,'[2]أرشيف الغياب'!#REF!,0)),\"\")","v":""}]
[null,null,{"$f":"IFERROR(INDEX('[2]أرشيف الغياب'!#REF!,MATCH(D22,'[2]أرشيف الغياب'!#REF!,0)),\"\")","v":""},{"$f":"IFERROR(INDEX('[2]أرشيف الغياب'!#REF!,MATCH(D22,'[2]أرشيف الغياب'!#REF!,0)),\"\")","v":""},{"$f":"IFERROR(INDEX('[2]أرشيف الغياب'!#REF!,MATCH(D22,'[2]أرشيف الغياب'!#REF!,0)),\"\")","v":""}]
[null,null,{"$f":"IFERROR(INDEX('[2]أرشيف الغياب'!#REF!,MATCH(D23,'[2]أرشيف الغياب'!#REF!,0)),\"\")","v":""},{"$f":"IFERROR(INDEX('[2]أرشيف الغياب'!#REF!,MATCH(D23,'[2]أرشيف الغياب'!#REF!,0)),\"\")","v":""},{"$f":"IFERROR(INDEX('[2]أرشيف الغياب'!#REF!,MATCH(D23,'[2]أرشيف الغياب'!#REF!,0)),\"\")","v":""}]
[null,null,{"$f":"IFERROR(INDEX('[2]أرشيف الغياب'!#REF!,MATCH(D24,'[2]أرشيف الغياب'!#REF!,0)),\"\")","v":""},{"$f":"IFERROR(INDEX('[2]أرشيف الغياب'!#REF!,MATCH(D24,'[2]أرشيف الغياب'!#REF!,0)),\"\")","v":""},{"$f":"IFERROR(INDEX('[2]أرشيف الغياب'!#REF!,MATCH(D24,'[2]أرشيف الغياب'!#REF!,0)),\"\")","v":""}]
[null,null,{"$f":"IFERROR(INDEX('[2]أرشيف الغياب'!#REF!,MATCH(D25,'[2]أرشيف الغياب'!#REF!,0)),\"\")","v":""},{"$f":"IFERROR(INDEX('[2]أرشيف الغياب'!#REF!,MATCH(D25,'[2]أرشيف الغياب'!#REF!,0)),\"\")","v":""},{"$f":"IFERROR(INDEX('[2]أرشيف الغياب'!#REF!,MATCH(D25,'[2]أرشيف الغياب'!#REF!,0)),\"\")","v":""}]